bitfinex-derivatives/quotes_ETHF0:USTF0_20240925
["timestamp","ask_amount","ask_price","bid_price","bid_amount"]
[1727251395224,1.98192423,2622.5,2622.4,4.86554396]
[1727251397322,1.98192423,2622.5,2622.4,3.37148857]
[1727251397515,1.98192423,2622.5,2622.4,3.75279857]
[1727251398628,1.98192423,2622.5,2622.4,4.22968689]
[1727251399518,1.98192423,2622.5,2622.4,4.23091545]
[1727251399923,1.98192423,2622.5,2622.4,7.17419315]
[1727251400642,1.98192423,2622.5,2622.4,6.57808227]
[1727251400819,1.98192423,2622.5,2622.4,5.14741308]
[1727251401117,1.98192423,2622.5,2622.4,8.72406699]
[1727251401526,1.98192423,2622.5,2622.4,8.7240734]
[1727251402520,1.98192423,2622.5,2622.4,11.67686074]
[1727251403120,1.98192423,2622.5,2622.4,9.1176734]
[1727251403320,1.98192423,2622.5,2622.4,11.67676828]
[1727251404015,1.98192423,2622.5,2622.4,11.29545828]
[1727251404244,1.98192423,2622.5,2622.4,9.26868125]
[1727251404427,1.98192423,2622.5,2622.4,7.66334782]
[1727251404725,1.98192423,2622.5,2622.4,8.25944873]
[1727251404915,1.98192423,2622.5,2622.4,8.73632945]
[1727251405620,1.98192423,2622.5,2622.4,9.11763945]
[1727251406217,1.98192423,2622.5,2622.4,12.32543945]
[1727251406428,1.98192423,2622.5,2622.4,11.72933049]
[1727251406622,1.98192423,2622.5,2622.4,10.77555616]
[1727251407417,1.98192423,2622.5,2622.4,10.29867544]
[1727251407725,1.88082423,2622.5,2622.4,10.39424923]
[1727251408120,1.88082423,2622.5,2622.4,7.83230095]
[1727251408512,1.88082423,2622.5,2622.4,4.62450095]
[1727251408718,1.88082423,2622.5,2622.4,7.83230095]
[1727251409121,1.88082423,2622.5,2622.4,7.83154767]
[1727251409329,1.88082423,2622.5,2622.4,4.62374767]
[1727251410118,1.88082423,2622.5,2622.4,4.24243767]
[1727251410633,1.88082423,2622.5,2622.4,4.62374767]
[1727251410932,1.88082423,2622.5,2622.4,4.14687483]
[1727251411323,1.88082423,2622.5,2622.4,4.23016432]
[1727251411933,0.3834,2622.5,2622.4,5.72507831]
[1727251412124,0.3834,2622.5,2622.4,5.24817065]
[1727251412826,0.3834,2622.5,2622.4,4.86686065]
[1727251413329,0.3834,2622.5,2622.4,5.24817065]
[1727251413728,0.3834,2622.5,2622.4,3.96921768]
[1727251413922,0.3834,2622.5,2622.4,4.86694187]
[1727251414257,0.3834,2622.5,2622.4,4.65214001]
[1727251414431,0.3834,2622.5,2622.4,5.24828893]
[1727251417424,0.3834,2622.5,2622.4,4.65214001]
[1727251417631,0.3834,2622.5,2622.4,5.24827944]
[1727251418224,1.88510928,2622.5,2622.4,3.75341012]
[1727251418435,0.3834,2622.5,2622.4,5.24821737]
[1727251418633,1.88510063,2622.5,2622.4,2.47434943]
[1727251418835,1.88510063,2622.5,2622.4,3.75334268]
[1727251420140,1.88510063,2622.5,2622.4,3.75338284]
[1727251420339,1.88510063,2622.5,2622.4,5.24822975]
[1727251420540,0.3834,2622.5,2622.4,5.24822975]
[1727251420734,1.88508999,2622.5,2622.4,5.24822975]
[1727251420938,1.88509229,2622.5,2622.4,4.65206887]
[1727251421130,0.3834,2622.5,2622.4,5.2482015]
[1727251421435,0.3834,2622.5,2622.4,5.24814909]
[1727251422234,1.98618428,2622.5,2622.4,3.75337604]
[1727251423141,1.98618169,2622.5,2622.4,3.75337604]
[1727251423331,1.98618169,2622.5,2622.4,5.24822185]
[1727251423531,1.98618169,2622.5,2622.4,3.75337604]
[1727251423727,0.4845,2622.5,2622.4,5.24820977]
[1727251423944,1.98617704,2622.5,2622.4,5.24820977]
[1727251424139,1.98617704,2622.5,2622.4,5.24821055]
[1727251424368,1.98617704,2622.5,2622.4,5.24823696]
[1727251424369,1.98617678,2622.5,2622.4,5.24823696]
[1727251424540,0.4845,2622.5,2622.4,4.65210433]
[1727251424839,0.4845,2622.5,2622.4,5.24823765]
[1727251426742,0.4845,2622.5,2622.4,4.86692765]
[1727251427258,0.4845,2622.5,2622.4,4.27079433]
[1727251427443,0.4845,2622.5,2622.4,5.24824658]
[1727251428239,0.4845,2622.5,2622.4,4.86693658]
[1727251428645,0.4845,2622.5,2622.4,5.24824658]
[1727251429338,0.4845,2622.5,2622.4,4.65210433]
[1727251429545,0.4845,2622.5,2622.4,5.24825475]
[1727251429844,1.98610112,2622.5,2622.4,3.76682096]
[1727251430043,0.4845,2622.5,2622.4,3.76687491]
[1727251430640,2.48106564,2622.5,2622.4,4.14818491]
[1727251430941,2.48106564,2622.5,2622.4,3.76687491]
[1727251431146,2.48106564,2622.5,2622.4,4.14818491]
[1727251431645,2.48106564,2622.5,2622.4,3.17072449]
[1727251431842,2.48106564,2622.5,2622.4,3.55203449]
[1727251433439,2.48106564,2622.5,2622.4,3.55193799]
[1727251433634,2.48106564,2622.5,2622.4,2.27196832]
[1727251433838,2.48106564,2622.5,2622.4,3.76679508]
[1727251434043,2.48106564,2622.5,2622.4,4.14810508]
[1727251434237,2.48106564,2622.5,2622.4,3.77245367]
[1727251434438,2.48106564,2622.5,2622.4,4.36906062]
[1727251434644,2.37996564,2622.5,2622.4,3.77290116]
[1727251434842,0.3834,2622.5,2622.4,4.86726532]
[1727251437061,0.3834,2622.5,2622.4,4.86725767]
[1727251437352,2.37996564,2622.5,2622.4,4.36882206]
[1727251437653,0.3834,2622.5,2622.4,4.86725767]
[1727251438249,0.3834,2622.5,2622.4,4.86692159]
[1727251439145,2.37996564,2622.5,2622.4,4.74972568]
[1727251439350,1.88477673,2622.5,2622.4,5.24821164]
[1727251439655,0.3834,2622.5,2622.4,5.24821164]
[1727251439894,0.3834,2622.5,2622.4,4.65208904]
[1727251440155,0.3834,2622.5,2622.4,3.75344068]
[1727251440358,0.3834,2622.5,2622.4,5.24823971]
[1727251440861,2.37996564,2622.5,2622.4,4.15226883]
[1727251441358,2.37996564,2622.5,2622.4,3.75343639]
[1727251441359,0.3834,2622.5,2622.4,3.75343639]
[1727251441566,0.3834,2622.5,2622.4,3.75167697]
[1727251442154,0.3834,2622.5,2622.4,5.246476]
[1727251442351,0.3834,2622.5,2622.4,4.65032962]
[1727251442553,0.3834,2622.5,2622.4,4.15074708]
[1727251442749,1.99656564,2622.5,2622.4,4.15074708]
[1727251443059,0.355,2622.8,2622.4,27.25893519]
[1727251443264,2.36156564,2623.1,2622.9,0.38123]
[1727251443265,2.22125561,2623.1,2622.9,0.38123]
[1727251443458,0.365,2623.1,2623.0,3.37312761]
[1727251443657,1.86625561,2623.1,2623.0,4.36738742]
[1727251443858,2.24745561,2623.1,2623.0,2.49405981]
[1727251444054,1.86625561,2623.1,2623.0,2.49405981]
[1727251444251,1.86625561,2623.1,2623.0,2.87527981]
[1727251444558,1.50125561,2623.3,2623.0,8.67686531]
[1727251444862,0.38118,2623.3,2623.1,3.36981044]
[1727251445158,0.4051,2623.2,2623.1,2.09381859]
[1727251445359,0.4051,2623.2,2623.1,0.99381859]
[1727251445664,0.78629,2623.2,2623.0,1.39361859]
[1727251445866,0.3735,2623.1,2623.0,0.78102]
[1727251446057,0.4051,2623.2,2623.0,2.87483859]
[1727251446359,1.87575561,2623.3,2623.1,0.3812]
[1727251446664,1.87575561,2623.3,2623.2,1.1]
[1727251447453,0.3745,2623.3,2623.2,1.1]
[1727251447866,0.3745,2623.3,2623.1,1.4812]
[1727251448163,0.3745,2623.3,2623.1,1.1]
[1727251448354,0.3745,2623.3,2623.1,1.4812]
[1727251448757,0.3745,2623.3,2623.1,1.1]
[1727251449153,0.75568,2623.3,2623.1,1.1]
[1727251449352,0.3745,2623.3,2623.1,1.1]
[1727251449964,0.75568,2623.3,2623.1,1.1]
[1727251450265,0.3745,2623.3,2623.1,1.1]
[1727251451268,0.3745,2623.3,2623.1,1.4812]
[1727251451962,0.3745,2623.3,2623.1,1.1]
[1727251452378,0.75568,2623.3,2623.1,1.1]
[1727251455063,0.3745,2623.3,2623.1,1.1]
[1727251455865,0.3745,2623.3,2623.1,1.4812]
[1727251456264,0.75568,2623.3,2623.1,1.4812]
[1727251456471,0.75568,2623.3,2623.1,1.1]
[1727251459673,0.75568,2623.3,2623.1,1.4812]
[1727251459971,0.75568,2623.3,2623.1,1.8586]
[1727251460668,0.8036,2623.4,2623.2,1.48118]
[1727251461275,0.8036,2623.4,2623.3,0.3883]
[1727251461276,1.18476,2623.4,2623.3,0.3883]
[1727251461671,0.8036,2623.4,2623.3,0.3883]
[1727251463076,0.8036,2623.4,2623.3,0.76948]
[1727251463277,3.9759,2623.6,2623.3,0.3883]
[1727251463466,3.9759,2623.6,2623.5,1.1]
[1727251464271,3.6046,2623.7,2623.5,1.48113]
[1727251464579,3.6046,2623.7,2623.5,1.1]
[1727251464764,3.6046,2623.7,2623.6,0.3705]
[1727251468069,3.98572,2623.7,2623.6,0.3705]
[1727251468278,3.6046,2623.7,2623.6,0.3705]
[1727251470066,3.98572,2623.7,2623.6,0.3705]
[1727251472369,3.98572,2623.7,2623.6,1.4705]
[1727251474874,0.77792,2623.7,2623.6,1.4705]
[1727251475274,3.98572,2623.7,2623.6,1.4705]
[1727251475471,4.08682,2623.7,2623.6,1.4705]
[1727251476771,4.08682,2623.7,2623.6,0.3705]
[1727251478075,0.38114,2623.6,2623.4,1.1]
[1727251478287,1.11654,2623.6,2623.4,1.1]
[1727251478479,0.7354,2623.6,2623.5,1.4935]
[1727251478986,0.38113,2623.6,2623.5,1.4935]
[1727251479179,4.08683,2623.7,2623.5,1.4935]
[1727251479377,0.4979,2623.7,2623.5,2.27124]
[1727251479582,0.4979,2623.7,2623.5,1.8901]
[1727251479885,0.4979,2623.7,2623.5,2.27125]
[1727251480383,0.4979,2623.7,2623.5,2.27123]
[1727251480687,0.4979,2623.7,2623.6,8.57355653]
[1727251480688,0.1011,2623.7,2623.6,8.57355653]
[1727251480982,0.355,2624.0,2623.9,0.38109]
[1727251481186,0.355,2624.3,2624.2,0.38104]
[1727251481374,0.7458,2624.6,2624.2,0.38104]
[1727251481375,0.3806,2624.6,2624.2,4.3078]
[1727251481579,3.5628,2624.8,2624.5,1.48099]
[1727251481780,3.2078,2624.8,2624.7,1.1]
[1727251482274,0.3961,2624.9,2624.7,1.1]
[1727251482474,0.7356,2625.1,2624.8,1.1]
[1727251482677,0.3806,2625.1,2625.0,1.1]
[1727251482881,2.63322561,2625.4,2625.0,1.1]
[1727251483185,0.3961,2625.4,2625.3,1.1]
[1727251483679,0.3961,2625.4,2625.3,4.9088]
[1727251484084,0.3682,2625.5,2625.3,4.9088]
[1727251484387,0.3682,2625.5,2625.3,1.1]
[1727251486075,0.3682,2625.5,2624.9,3.6048]
[1727251486281,0.38088,2625.4,2624.9,1.476]
[1727251486479,0.38088,2625.4,2625.0,12.21066698]
[1727251486683,0.3677,2625.3,2625.0,12.21066698]
[1727251486990,0.3677,2625.3,2625.2,1.1]
[1727251487582,0.3682,2625.5,2625.2,5.28969]
[1727251487780,0.3682,2625.5,2625.4,1.1]
[1727251488282,0.3682,2625.5,2625.3,0.3939]
[1727251488488,0.3682,2625.5,2625.4,1.1]
[1727251490680,0.74906,2625.5,2625.4,1.1]
[1727251490876,0.74906,2625.5,2625.3,1.1]
[1727251492985,0.38087,2625.4,2625.3,1.1]
[1727251494080,0.38089,2625.3,2625.1,1.1]
[1727251494281,0.38089,2625.3,2625.0,1.4862]
[1727251494481,0.3876,2625.2,2625.0,1.4862]
[1727251494678,0.3876,2625.2,2625.1,1.1]
[1727251498689,1.12106,2625.5,2625.1,1.48091]
[1727251498890,1.50306,2625.5,2625.3,1.1]
[1727251499888,0.38087,2625.4,2625.3,1.1]
[1727251501594,1.50306,2625.5,2625.3,1.1]
[1727251501794,0.3682,2625.5,2625.3,1.1]
[1727251501995,3.2078,2625.6,2625.4,8.45525881]
[1727251502211,3.2078,2625.6,2625.5,1.1]
[1727251502895,3.2078,2625.6,2625.5,5.28966]
[1727251503497,0.355,2625.8,2625.6,0.38083]
[1727251503689,3.9924,2625.9,2625.7,1.1]
[1727251504292,3.9924,2625.9,2625.8,2.38]
[1727251504508,4.3732,2625.9,2625.8,2.38]
[1727251505792,0.38081,2625.8,2625.6,2.38]
[1727251505993,4.37321,2625.9,2625.6,2.38]
[1727251507095,4.37321,2625.9,2625.6,2.76084]
[1727251507294,3.9924,2625.9,2625.6,2.76084]
[1727251507494,3.9924,2625.9,2625.8,2.38]
[1727251507703,4.3732,2625.9,2625.8,2.38]
[1727251508298,3.9924,2625.9,2625.8,2.38]
[1727251508895,4.3732,2625.9,2625.8,2.38]
[1727251509096,3.9924,2625.9,2625.8,2.38]
[1727251509301,4.3732,2625.9,2625.8,2.38]
[1727251509705,0.355,2626.3,2625.9,0.38079]
[1727251509892,0.7974,2626.2,2626.0,0.38078]
[1727251510097,0.7974,2626.2,2626.1,2.38]
[1727251510597,0.7974,2626.2,2626.1,2.76077]
[1727251510792,0.3951,2626.2,2626.1,2.38]
[1727251511096,0.355,2626.6,2626.1,6.188]
[1727251511330,0.3897,2626.5,2626.4,2.38]
[1727251511494,0.3897,2626.5,2626.0,3.2078]
[1727251511693,0.3897,2626.5,2626.0,2.38]
[1727251511694,0.38075,2626.3,2626.0,2.38]
[1727251512197,0.77206,2626.2,2626.0,2.38]
[1727251512506,0.3913,2626.2,2626.0,2.38]
[1727251512808,0.3913,2626.2,2625.9,0.3869]
[1727251512997,0.3839,2626.1,2625.9,0.3869]
[1727251513191,0.3953,2626.0,2625.9,0.3869]
[1727251517611,0.77608,2626.0,2625.9,0.3869]
[1727251517903,0.3953,2626.0,2625.9,0.3869]
[1727251518132,0.77608,2626.0,2625.9,0.3869]
[1727251518314,0.3953,2626.0,2625.8,2.38]
[1727251518505,0.389,2625.9,2625.8,2.38]
[1727251518900,0.3953,2626.0,2625.8,2.38]
[1727251519301,0.3953,2626.0,2625.8,2.7608]
[1727251519605,0.3808,2625.9,2625.7,3.2078]
[1727251519800,0.38081,2625.8,2625.6,2.38]
[1727251520001,0.74922,2625.8,2625.6,2.38]
[1727251520300,0.38083,2625.7,2625.5,1.4812]
[1727251520505,0.3684,2625.8,2625.6,2.38]
[1727251520907,0.3684,2625.8,2625.6,2.76084]
[1727251521206,3.98389,2626.0,2625.6,2.76083]
[1727251521207,0.77609,2626.0,2625.6,2.76083]
[1727251521510,1.17159,2626.0,2625.9,2.38]
[1727251522506,0.3808,2625.9,2625.7,2.38]
[1727251522705,0.38081,2625.8,2625.7,2.38]
[1727251523200,0.38081,2625.9,2625.7,2.38]
[1727251523399,0.38084,2625.7,2625.5,2.7852]
[1727251523603,0.78524,2625.6,2625.5,2.38]
[1727251525420,1.74279,2626.0,2625.5,2.38]
[1727251525421,0.7908,2626.0,2625.5,2.76085]
[1727251525608,0.7908,2626.0,2625.8,2.38]
[1727251525609,0.3932,2625.9,2625.8,2.38]
[1727251525803,0.77401,2625.9,2625.8,2.38]
[1727251526504,0.774,2625.9,2625.8,2.38]
[1727251526705,2.27525561,2625.9,2625.8,2.38]
[1727251528313,0.774,2625.9,2625.8,2.38]
[1727251532909,0.38082,2625.8,2625.6,0.3677]
[1727251533114,1.87614796,2625.8,2625.6,0.3677]
[1727251534315,0.355,2626.1,2626.0,0.38078]
[1727251534514,0.355,2626.5,2626.3,0.38074]
[1727251534714,0.78549,2626.7,2626.3,0.38074]
[1727251535024,0.78549,2626.7,2626.3,2.38]
[1727251535215,0.4048,2626.7,2626.3,2.76074]
[1727251535519,0.78549,2626.7,2626.3,2.76074]
[1727251535911,0.3807,2626.6,2626.3,2.38]
[1727251536332,0.3658,2626.5,2626.3,2.38]
[1727251536813,0.3658,2626.5,2626.3,6.56794]
[1727251537013,0.3658,2626.5,2626.3,2.38]
[1727251537314,0.3658,2626.5,2626.3,6.56794]
[1727251538214,0.3658,2626.5,2626.3,2.76074]
[1727251540522,0.4048,2626.7,2626.3,2.38]
[1727251540819,0.3807,2626.6,2626.3,2.76073]
[1727251541122,0.3807,2626.6,2626.5,2.38]
[1727251541626,0.7818,2626.7,2626.5,2.38]
[1727251541920,0.3807,2626.6,2626.5,2.38]
[1727251543118,0.7818,2626.7,2626.5,2.38]
[1727251543424,0.7818,2626.7,2626.5,2.76071]
[1727251545016,1.16248,2626.7,2626.5,2.38]
[1727251547014,0.7818,2626.7,2626.3,0.98891047]
[1727251547221,0.7818,2626.7,2626.2,0.98891047]
[1727251547222,0.38072,2626.5,2626.2,0.98891047]
[1727251547418,0.77783,2626.4,2626.1,3.36891047]
[1727251547622,0.77784,2626.4,2626.1,2.38]
[1727251547821,0.3922,2626.3,2626.1,2.38]
[1727251548022,0.3861,2626.2,2626.1,2.38]
[1727251548520,0.3861,2626.2,2626.1,3.36891047]
[1727251548725,0.3861,2626.2,2626.1,2.38]
[1727251549524,0.76685,2626.2,2626.1,2.38]
[1727251549728,0.38077,2626.1,2625.9,3.36891047]
[1727251549919,0.76686,2626.2,2625.9,3.36891047]
[1727251550117,0.38077,2626.1,2625.9,3.36891047]
[1727251550714,0.38078,2626.0,2625.9,0.98891047]
[1727251550918,0.38081,2625.8,2625.7,0.98891047]
[1727251551229,0.38081,2625.8,2625.4,6.20469931]
[1727251551230,0.38083,2625.7,2625.5,0.98891047]
[1727251551421,0.3898,2625.6,2625.5,0.98891047]
[1727251551728,0.3898,2625.6,2625.5,3.36891047]
[1727251551916,0.3898,2625.6,2625.5,2.38]
[1727251552224,0.3898,2625.6,2625.5,6.78421782]
[1727251553323,0.3898,2625.6,2625.5,6.1888]
[1727251553515,0.3898,2625.6,2625.5,6.78422603]
[1727251553920,3.5628,2626.1,2625.5,12.78422603]
[1727251554124,0.089,2626.5,2626.0,2.38]
[1727251554125,0.4908,2626.5,2626.0,2.38]
[1727251554324,0.4908,2626.5,2626.4,2.38]
[1727251554325,0.4018,2626.5,2626.4,2.38]
[1727251555522,0.78251,2626.5,2626.4,2.38]
[1727251555720,0.4018,2626.5,2626.4,2.38]
[1727251559831,0.38074,2626.4,2626.2,3.3699097]
[1727251560029,0.38074,2626.4,2626.2,2.38]
[1727251560225,0.4018,2626.5,2626.2,2.38]
[1727251560226,0.3714,2626.3,2626.2,2.38]
[1727251564336,0.3714,2626.3,2626.2,2.76075]
[1727251564529,0.3714,2626.3,2626.2,2.38]
[1727251565037,0.75214,2626.3,2626.2,2.38]
[1727251565334,0.3714,2626.3,2626.0,2.38]
[1727251565527,0.38077,2626.1,2625.8,3.3699097]
[1727251565734,0.3679,2626.0,2625.7,1.3707397]
[1727251565926,0.3679,2626.0,2625.9,2.38]
[1727251567541,0.74868,2626.0,2625.9,2.38]
[1727251567935,0.38082,2625.8,2625.6,0.9899097]
[1727251568144,0.3648,2625.7,2625.5,6.5777097]
[1727251568340,0.3648,2625.7,2625.5,3.3699097]
[1727251568341,1.14313,2625.7,2625.5,3.3699097]
[1727251568539,1.14313,2625.7,2625.5,2.38]
[1727251569448,0.38084,2625.6,2625.5,2.38]
[1727251570642,7.0166,2625.6,2625.2,0.9899097]
[1727251570960,3.2078,2625.3,2624.8,3.3699097]
[1727251571140,0.38092,2625.1,2624.8,2.38]
[1727251571450,0.3822,2625.0,2624.8,2.38]
[1727251573246,0.76313,2625.0,2624.8,2.38]
[1727251573847,0.38094,2624.9,2624.8,2.38]
[1727251574444,0.76314,2625.0,2624.8,2.38]
[1727251575034,0.3822,2625.0,2624.8,2.38]
[1727251575641,0.76313,2625.0,2624.8,2.38]
[1727251577448,0.76314,2625.0,2624.8,2.38]
[1727251578043,0.38094,2624.9,2624.8,2.38]
[1727251579050,1.99656564,2625.8,2624.8,22.13842981]
[1727251579255,0.355,2625.4,2625.3,0.38087]
[1727251579450,0.3651,2625.7,2625.5,0.38085]
[1727251579657,0.3651,2625.7,2625.4,0.38086]
[1727251580847,0.3651,2625.7,2625.3,3.2078]
[1727251581051,0.3651,2625.7,2625.6,2.38]
[1727251582450,0.3651,2625.7,2625.6,2.76084]
[1727251583250,0.3651,2625.7,2625.6,2.38]
[1727251591465,0.3651,2625.7,2625.6,2.76084]
[1727251591760,0.3651,2625.7,2625.6,2.38]
[1727251594465,3.5729,2625.7,2625.4,2.38]
[1727251594651,3.95374,2625.7,2625.4,2.38]
[1727251594956,0.38084,2625.6,2625.2,4.37245071]
[1727251595162,3.5729,2625.7,2625.1,3.2078]
[1727251595362,0.38085,2625.6,2625.0,3.583]
[1727251595560,0.38086,2625.5,2625.2,2.38]
[1727251595954,0.3824,2625.4,2625.2,2.38]
[1727251598562,0.38088,2625.3,2625.2,2.38]
[1727251598763,0.75378,2625.3,2625.2,2.38]
[1727251598961,0.3729,2625.3,2625.2,2.38]
[1727251601165,0.75379,2625.3,2625.1,2.38]
[1727251601355,0.75379,2625.3,2624.7,3.5628]
[1727251601356,4.76186,2625.2,2624.7,3.5628]
[1727251601557,0.3711,2625.1,2624.6,0.266]
[1727251601766,0.38094,2624.9,2624.5,2.38]
[1727251602267,0.3711,2625.1,2624.5,2.38]
[1727251602268,0.399,2624.8,2624.7,2.38]
[1727251606670,0.77996,2624.8,2624.7,2.38]
[1727251606970,1.15946,2624.8,2624.5,2.38]
[1727251607168,0.7785,2624.8,2624.5,2.761]
[1727251609268,0.38098,2624.7,2624.4,2.38]
[1727251609456,0.76769,2624.6,2624.4,2.38]
[1727251609656,0.76769,2624.6,2624.4,6.57510865]
[1727251609869,0.76769,2624.6,2624.4,4.19510865]
[1727251610166,0.3867,2624.6,2624.3,4.1977097]
[1727251610476,0.38103,2624.3,2624.1,0.9899097]
[1727251610765,0.3865,2624.2,2624.0,2.38]
[1727251610955,0.3665,2624.1,2624.0,2.38]
[1727251612372,0.3665,2624.1,2624.0,2.76107]
[1727251623875,0.3665,2624.1,2624.0,10.66951662]
[1727251626280,0.3665,2624.1,2624.0,13.87731662]
[1727251626466,0.3665,2624.1,2624.0,10.06611662]
[1727251626671,0.3665,2624.1,2624.0,13.87731662]
[1727251628875,0.7596,2624.5,2624.0,13.49624662]
[1727251629075,0.3957,2624.4,2624.3,2.76102]
[1727251629984,0.38099,2624.6,2624.3,5.96882]
[1727251630179,1.5594,2624.5,2624.3,5.5878]
[1727251630982,1.5594,2624.5,2624.3,5.96883]
[1727251631283,0.381,2624.5,2624.3,11.5878]
[1727251631585,0.355,2624.9,2624.8,0.38096]
[1727251631774,0.3957,2625.2,2625.1,0.38091]
[1727251631979,0.3819,2625.4,2625.2,0.38089]
[1727251633697,0.3819,2625.4,2625.3,0.38088]
[1727251634578,0.3819,2625.4,2625.2,0.38089]
[1727251635089,0.3819,2625.4,2625.1,6.53642509]
[1727251635588,0.3819,2625.4,2625.2,0.38089]
[1727251637297,0.3819,2625.4,2625.2,3.58869]
[1727251638189,0.3819,2625.4,2625.3,0.38088]
[1727251638494,0.3819,2625.4,2625.2,3.2078]
[1727251638789,0.3819,2625.4,2625.2,3.58869]
[1727251639591,0.3819,2625.4,2625.2,0.38089]
[1727251639791,0.3819,2625.4,2625.2,3.58869]
[1727251640393,0.3819,2625.4,2625.3,0.38088]
[1727251641397,0.7951,2625.6,2625.3,0.38088]
[1727251641597,0.7951,2625.6,2625.5,5.96866]
[1727251641890,0.7951,2625.6,2625.5,14.00490887]
[1727251642096,0.7951,2625.6,2625.5,7.43524887]
[1727251642281,0.1107,2625.4,2625.3,2.38]
[1727251642487,0.1107,2625.4,2625.3,2.76088]
[1727251642799,0.1107,2625.4,2625.3,6.56968]
[1727251644998,0.1107,2625.4,2625.3,10.85199222]
[1727251650189,0.1107,2625.4,2625.3,19.00794973]
[1727251654600,0.7951,2625.6,2625.5,0.38086]
[1727251654799,0.7951,2625.6,2625.5,2.76086]
[1727251655000,0.7951,2625.6,2625.5,10.89207811]
[1727251661213,0.7951,2625.6,2625.5,2.38]
[1727251662305,0.7951,2625.6,2625.5,1.48086]
[1727251667614,0.7951,2625.6,2625.5,1.1]
[1727251667850,0.38086,2625.5,2625.4,1.1]
[1727251668908,0.38086,2625.5,2625.1,3.2078]
[1727251668909,0.38086,2625.5,2625.2,0.3809]
[1727251669216,0.38086,2625.5,2625.3,1.1]
[1727251669808,0.7951,2625.6,2625.3,0.4925]
[1727251670115,0.38086,2625.5,2625.3,0.4925]
[1727251671612,0.38087,2625.4,2625.3,0.4925]
[1727251673226,0.38087,2625.5,2625.3,0.4925]
[1727251673518,0.38087,2625.5,2625.4,1.1]
[1727251673910,4.18967,2625.5,2625.4,1.1]
[1727251674305,0.355,2625.9,2625.5,3.8088]
[1727251674507,1.1313,2626.3,2626.1,0.38076]
[1727251674707,0.7763,2626.3,2626.2,1.1]
[1727251674914,0.7763,2626.3,2626.2,2.09429589]
[1727251676418,0.7763,2626.3,2626.2,3.37429589]
[1727251679110,0.7763,2626.3,2626.2,3.75504589]
[1727251680121,0.7763,2626.3,2626.2,6.96284589]
[1727251680418,0.3879,2626.4,2626.3,0.38074]
[1727251680622,0.3879,2626.4,2626.3,1.37503589]
[1727251681023,0.3879,2626.4,2626.3,0.38074]
[1727251681321,0.3879,2626.4,2626.3,1.37472318]
[1727251681520,0.764,2626.6,2626.4,0.38072]
[1727251681721,0.764,2626.6,2626.5,2.38]
[1727251681921,0.764,2626.6,2626.5,3.75467134]
[1727251682228,0.764,2626.6,2626.5,7.56187134]
[1727251682419,0.3956,2626.6,2626.5,11.56975818]
[1727251682922,0.3752,2626.8,2626.7,0.38068]
[1727251683314,0.3752,2626.8,2626.5,9.59568684]
[1727251683315,0.3752,2626.8,2626.5,7.38111189]
[1727251683517,5.07871482,2626.8,2626.2,0.99322505]
[1727251683819,2.44748482,2626.6,2626.1,2.38]
[1727251684023,0.38073,2626.4,2626.1,2.38]
[1727251684212,0.3953,2626.3,2626.0,0.99322505]
[1727251684413,0.3953,2626.3,2626.2,2.38]
[1727251685623,0.77604,2626.3,2626.2,2.38]
[1727251685921,0.3953,2626.3,2626.0,2.38]
[1727251686130,0.3953,2626.3,2625.8,3.37322505]
[1727251686131,0.3808,2625.9,2625.8,3.37322505]
[1727251686423,0.3808,2625.9,2625.7,0.99322505]
[1727251686628,1.55921,2625.8,2625.6,15.72882944]
[1727251686838,1.55921,2625.8,2625.6,3.37322505]
[1727251687018,0.38083,2625.7,2625.6,3.37322505]
[1727251687422,0.38083,2625.7,2625.6,2.38]
[1727251690624,4.18963,2625.7,2625.6,2.38]
[1727251692129,4.18963,2625.7,2625.3,0.99322505]
[1727251692130,0.38087,2625.4,2625.3,3.37322505]
[1727251692324,0.38087,2625.4,2625.3,2.38]
[1727251692626,1.87654482,2625.7,2625.3,2.38]
[1727251693118,0.38086,2625.5,2625.3,2.38]
[1727251693628,0.38087,2625.4,2625.3,2.38]
[1727251697735,0.38086,2625.5,2625.3,2.38]
[1727251697936,0.38083,2625.7,2625.3,2.38]
[1727251698327,0.38087,2625.4,2625.3,2.38]
[1727251699029,0.3809,2625.2,2625.1,3.37322505]
[1727251699233,3.2078,2625.2,2624.9,3.37322505]
[1727251699438,0.38093,2625.0,2624.9,2.38]
[1727251702035,0.38099,2624.6,2624.4,3.37322505]
[1727251702336,0.7645,2624.5,2624.4,2.38]
[1727251702938,1.1455,2624.5,2624.4,2.38]
[1727251703136,1.1382,2624.5,2624.4,2.38]
[1727251710041,1.5192,2624.5,2624.4,2.38]
[1727251710344,1.1382,2624.5,2624.2,2.38]
[1727251710635,2.09073,2624.5,2624.0,2.7637]
[1727251711040,0.38105,2624.2,2624.0,2.7637]
[1727251712042,0.38104,2624.3,2624.0,2.7637]
[1727251712237,0.38103,2624.4,2624.2,2.38]
[1727251712544,0.38102,2624.4,2624.2,2.38]
[1727251712733,1.1382,2624.5,2624.2,2.38]
[1727251713338,0.38103,2624.3,2624.2,2.38]
[1727251714735,1.5192,2624.5,2624.2,2.38]
[1727251714945,3.2078,2624.8,2624.4,2.38]
[1727251715131,0.38098,2624.7,2624.4,2.38]
[1727251715540,1.1509,2624.8,2624.4,2.76101]
[1727251715840,4.73966,2624.8,2624.4,2.76101]
[1727251716732,1.53186,2624.8,2624.4,2.76101]
[1727251716930,0.38098,2624.7,2624.4,2.76101]